Cogmind - Beta 13 @@@ ROGUE MODE // 2024.07.02 @ 17:23:53 Player: CogEmotions! Result: Destroyed by Y-54 Guardian with Gatling Laser Performance ------------- Evolutions (0) 0 Regions Visited (4) 800 Robots Destroyed (23) 115 Value Destroyed (589) 589 Prototype IDs (0) 0 Alien Tech Used (0) 0 Bonus (0) 0 TOTAL SCORE: 1504 Bonus ------- None Cogmind --------- Core Integrity 0/250 Matter 252/300 Energy 18/100 System Corruption 0% Temperature Cool (36) Movement Treading (160) Location -7/Recycling Parts ------- > --- POWER (1) -------- (None) > --- PROPULSION (2) --- Spiked Treads > --- UTILITY (2) ------ Medium Storage Unit > --- WEAPON (2) ------- Riot Gun EM Pulse Cannon > --- INVENTORY (10) --- Scrap Engine Medium Matter Pod (100) Recoil Stabilizer Reaction Control System Light Armor Plating Hacking Suite Subdweller Beam Cannon Slug Cannon Flamer Peak State ------------ > --- POWER ------------ Light Ion Engine > --- PROPULSION ------- Spiked Treads Subdweller Monowheel > --- UTILITY ---------- Medium Storage Unit High-capacity Battery > --- WEAPON ----------- High-powered Shotgun Slug Cannon > --- INVENTORY -------- Medium Matter Pod Recoil Stabilizer Reaction Control System Light Armor Plating Hacking Suite EM Pulse Cannon Light Assault Rifle Flamer [Rating: 15] Favorites ----------- Power Ion Engine Engine Ion Engine Propulsion Spiked Treads Treads Spiked Treads Wheel Subdweller Monowheel Flight Unit Cesium-ion Thruster Utility Medium Storage Unit Storage Medium Storage Unit Weapon High-powered Shotgun Energy Gun EM Pulse Gun Energy Cannon Subdweller Beam Cannon Ballistic Gun High-powered Shotgun Ballistic Cannon Slug Cannon Build | -11 -10 -10 -10 -7 ------- Run | Yrd Mat Min Sub Rec Slots Evolved . | . . . . . Power . | . . . . . Propulsion . | . . . . . Utility . | . . . . . Weapon . | . . . . . Parts Attached 23 | 6 6 3 5 3 Power 2 | 1 . . 1 . Engine 2 | 1 . . 1 . Core . | . . . . . Reactor . | . . . . . Propulsion 6 | 2 . 1 2 1 Treads 4 | 2 . . 1 1 Leg . | . . . . . Wheel 1 | . . . 1 . Hover . | . . . . . Flight 1 | . . 1 . . Utility 3 | 1 2 . . . Device . | . . . . . Storage 3 | 1 2 . . . Processor . | . . . . . Hackware . | . . . . . Protection . | . . . . . Artifact . | . . . . . Weapon 12 | 2 4 2 2 2 Energy Gun 3 | . 2 . . 1 Energy Cannon 2 | . . . 1 1 Ballistic Gun 4 | 2 . 2 . . Ballistic Cannon 3 | . 2 . 1 . Launcher . | . . . . . Special Weapon . | . . . . . Impact Weapon . | . . . . . Slashing Weapon . | . . . . . Piercing Weapon . | . . . . . Special Melee Weapon . | . . . . . Unidentified Prototypes . | . . . . . Parts Lost 7 | . 1 2 4 . Power 2 | . . . 2 . Propulsion 2 | . . 1 1 . Utility . | . . . . . Weapon 3 | . 1 1 1 . Highest Loss Streak 2 | . 1 2 1 . To Critical Strikes . | . . . . . Average Slot Usage (%) 80 | . 90 84 79 59 Engine 12 | . 14 14 12 . Treads 13 | . 28 14 9 14 Storage 26 | . 19 28 28 16 Energy Gun 2 | . 19 . . . Energy Cannon 1 | . . . 1 14 Ballistic Gun 11 | . 4 13 12 . Ballistic Cannon 12 | . 3 14 14 13 Naked Turns . | . . . . . Heaviest Build 29 | 13 24 25 29 29 Greatest Support 40 | 40 40 20 20 20 Greatest Overweight (x) 9 | . . 1 9 1 Average Overweight (x) 1 | . . 1 2 1 Largest Inventory Capacity 10 | 8 10 10 10 10 Average Capacity 9 | 7 8 10 10 10 Most Carried 10 | 5 6 10 10 10 Average Carried 8 | 1 3 8 9 9 Final Capacity 10 | 8 10 10 10 10 Final Carried 10 | 1 5 10 10 10 Class Distribution -------------------- 100% | Mutant Dominant Class ---------------- Mutant | -10/Materials Mutant | -10/Mines Mutant | -10/Subcaves Mutant | -7/Recycling Resources | -11 -10 -10 -10 -7 ----------- Run | Yrd Mat Min Sub Rec Matter Collected 800 | 199 124 187 290 . Remotely . | . . . . . Salvage Created 656 | . 411 60 185 . Parts 42 | . 14 6 22 . Haulers Intercepted . | . . . . . Recyclers Shooed . | . . . . . Parts Field Recycled . | . . . . . Retrieved Matter . | . . . . . Parts Self-Destructed 17 | . . . 17 . Prevented . | . . . . . Kills | -11 -10 -10 -10 -7 ------- Run | Yrd Mat Min Sub Rec Combat Hostiles Destroyed 17 | . 6 3 8 . Guns 13 | . 4 1 8 . Cannons 3 | . 1 2 . . AOE 1 | . 1 . . . Classes Destroyed 7 | . 4 1 2 . Tunneler 2 | . 1 1 . . Recycler 1 | . 1 . . . Turret 2 | . . . 2 . Watcher 1 | . 1 . . . Swarmer 8 | . . 3 5 . Grunt 6 | . 6 . . . Subdweller 3 | . . . 3 . Best Kill Streak 6 | . 6 3 4 . Combat Bots Only 4 | . 4 3 3 . Max Kills in Single Turn 2 | . 2 1 1 . Gunslinging . | . . . . . Exploded 1 | . 1 . . . Melee . | . . . . . Uniques/NPCs Destroyed . | . . . . . Combat | -11 -10 -10 -10 -7 -------- Run | Yrd Mat Min Sub Rec Hostile Shots Fired 218 | . 34 28 99 57 Missed 77 | . 10 6 32 29 Damage Taken 1432 | . 448 175 572 237 Core 260 | . 58 23 83 96 Absorbed by Shields . | . . . . . Core Remaining (%) 100 | 100 . . . . Volleys Fired 72 | . 23 15 30 4 Largest 2 | . 2 2 2 2 Hottest 128 | . 80 75 128 128 Shots Fired 131 | . 45 20 60 6 Gun 74 | . 43 5 25 1 Cannon 57 | . 2 15 35 5 Launcher . | . . . . . Special . | . . . . . Kinetic 77 | . 2 17 55 3 Thermal 5 | . . . 5 . Explosive . | . . . . . Electromagnetic 49 | . 43 3 . 3 Robot Hit Streak 10 | . 10 3 8 3 Robot Miss Streak 11 | . 2 5 11 4 Penetration Max . | . . . . . Secondary Targets 1 | . 1 . . . Max Gunslinging Chain 1 | . 1 . . . Shots Hit Robots 63 | . 30 8 23 2 Core Hits 33 | . 17 4 11 1 Critical Kills 2 | . . . 2 . Critical Parts Destroyed . | . . . . . Critical Strikes 4 | . . 2 2 . Destroy 2 | . . . 2 . Blast 2 | . . 2 . . Melee Attacks . | . . . . . Impact . | . . . . . Slashing . | . . . . . Piercing . | . . . . . Sneak Attacks . | . . . . . Combat Hostiles . | . . . . . Follow-up Attacks . | . . . . . Damage Inflicted 1188 | . 533 139 475 41 Guns 668 | . 414 54 181 19 Cannons 435 | . 34 85 294 22 Explosions 85 | . 85 . . . Melee . | . . . . . Ramming . | . . . . . Kinetic 490 | . 34 116 340 . Thermal 220 | . 85 . 135 . Explosive . | . . . . . Electromagnetic 478 | . 414 23 . 41 Impact . | . . . . . Slashing . | . . . . . Piercing . | . . . . . Highest Corruption . | . . . . . Average Corruption . | . . . . . Corruption Purged . | . . . . . Corruption Blocked . | . . . . . Overload Shots . | . . . . . Overflow Damage 43 | . . 6 37 . Projectiles 43 | . . 6 37 . Explosions . | . . . . . Melee . | . . . . . Knockbacks 5 | . . 1 4 . Impact . | . . . . . Kinetic 5 | . . 1 4 . Secondary . | . . . . . Self-Inflicted Damage 36 | . 36 . . . Shots 1 | . 1 . . . Rammed . | . . . . . Targets Rammed . | . . . . . Kicked . | . . . . . Crushed . | . . . . . Highest Temperature 296 | . 296 45 45 102 Average Temperature 98 | . 132 23 33 49 Received Heat Transfer 516 | . 210 . 222 84 Effects 1 | . 1 . . . Energy Bleed 1 | . 1 . . . Siege Activations . | . . . . . Robots Corrupted . | . . . . . Combat Hostiles . | . . . . . Parts Fried 3 | . 3 . . . Impact Corruptions . | . . . . . Robots Melted . | . . . . . Combat Hostiles . | . . . . . Parts Melted . | . . . . . Heat Transferred 285 | . 100 . 185 . Parts Sabotaged . | . . . . . Parts Stolen . | . . . . . Parts Stripped . | . . . . . Power Chain Reactions 2 | . 2 . . . Alert | -11 -10 -10 -10 -7 ------- Run | Yrd Mat Min Sub Rec Peak Influence 280 | . 155 109 . 280 Initial 277 | . . 39 . 277 Average 97 | . 78 71 . 277 Maximum Alert Level 1 | . . . . 1 Low Security (%) 86 | 100 100 100 . . Level 1 13 | . . . . 100 Level 2 . | . . . . . Level 3 . | . . . . . Level 4 . | . . . . . Level 5 . | . . . . . High Security . | . . . . . Max Security . | . . . . . Squads Dispatched 2 | . 1 1 . . Investigation 1 | . . 1 . . Extermination . | . . . . . Reinforcement 1 | . 1 . . . Assault . | . . . . . Garrison . | . . . . . Intercept . | . . . . . Searches Triggered . | . . . . . Construction Impeded . | . . . . . Haulers Reinforced . | . . . . . Active Scanning Responses . | . . . . . Cargo Convoy Interrupts . | . . . . . Stealth | -11 -10 -10 -10 -7 --------- Run | Yrd Mat Min Sub Rec Distress Signals 2 | . 2 . . . Communications Jammed . | . . . . . Distress Signals . | . . . . . Times Spotted 48 | . 8 3 36 1 Peak Tracking Total 5 | . 5 3 5 1 Tactical Retreats 3 | . . . 3 . Traps | -11 -10 -10 -10 -7 ------- Run | Yrd Mat Min Sub Rec Traps Triggered 1 | . 1 . . . Indirectly . | . . . . . Trap Hack Attempts . | . . . . . Triggered . | . . . . . Disarmed . | . . . . . Reprogrammed . | . . . . . Reused . | . . . . . Traps Extracted . | . . . . . Installed . | . . . . . Triggered . | . . . . . Most Traps Carried 4 | . . 4 2 . Machines | -11 -10 -10 -10 -7 ---------- Run | Yrd Mat Min Sub Rec Machines Disabled 6 | . 5 . 1 . Max in Single Turn 2 | . 2 . 1 . Machines Repaired . | . . . . . Machines Dismantled . | . . . . . Machines Sabotaged . | . . . . . Overloaded Fab Kills . | . . . . . Hacking | -11 -10 -10 -10 -7 --------- Run | Yrd Mat Min Sub Rec Machines Accessed 1 | . . 1 . . Terminals . | . . . . . Fabricators . | . . . . . Repair Stations . | . . . . . Recycling Units . | . . . . . Scanalyzers . | . . . . . Garrison Access . | . . . . . Total Hacks 1 | . . 1 . . Successful 1 | . . 1 . . Failed . | . . . . . Catastrophic . | . . . . . Database Lockouts . | . . . . . Manual . | . . . . . Terminals . | . . . . . Fabricators . | . . . . . Repair Stations . | . . . . . Recycling Units . | . . . . . Scanalyzers . | . . . . . Garrison Access . | . . . . . Terminal Hacks 1 | . . 1 . . Open Door 1 | . . 1 . . Fabricator Hacks . | . . . . . Repair Station Hacks . | . . . . . Recycling Unit Hacks . | . . . . . Scanalyzer . | . . . . . Garrison Access Hacks . | . . . . . Unauthorized Hacks . | . . . . . Terminals . | . . . . . Fabricators . | . . . . . Repair Stations . | . . . . . Recycling Units . | . . . . . Scanalyzers . | . . . . . Garrison Access . | . . . . . Data Cores Recovered . | . . . . . Used . | . . . . . Hacking Detections . | . . . . . Full Trace Events . | . . . . . Feedback Events . | . . . . . Feedback Blocked . | . . . . . Robot Schematics Acquired . | . . . . . Robots Built . | . . . . . Authchips . | . . . . . Time . | . . . . . Total Robot Build Rating . | . . . . . Part Schematics Acquired . | . . . . . Parts Built . | . . . . . Authchips . | . . . . . Time . | . . . . . Total Part Build Rating . | . . . . . Parts Repaired . | . . . . . Time . | . . . . . Parts Recycled . | . . . . . Recycled Matter . | . . . . . Retrieved Matter . | . . . . . Retrieved Components . | . . . . . Parts Scanalyzed . | . . . . . Part Schematics Acquired . | . . . . . Parts Damaged . | . . . . . Bothacking | -11 -10 -10 -10 -7 ------------ Run | Yrd Mat Min Sub Rec Used RIF Installer . | . . . . . Robots Hacked . | . . . . . Non-combat . | . . . . . Combat . | . . . . . Robot Hacks Applied . | . . . . . Relay Couplers Released . | . . . . . Fabnet Peak Effective % . | . . . . . Robots Rewired . | . . . . . Allies Hacked . | . . . . . Hacks Repelled . | . . . . . Allies | -11 -10 -10 -10 -7 -------- Run | Yrd Mat Min Sub Rec Total Allies . | . . . . . Largest Group . | . . . . . Highest-Rated Group . | . . . . . Highest-Rated Ally . | . . . . . Total Orders . | . . . . . Ally Attacks . | . . . . . Total Damage . | . . . . . Kills . | . . . . . Allies Corrupted . | . . . . . Allies Melted . | . . . . . Intel | -11 -10 -10 -10 -7 ------- Run | Yrd Mat Min Sub Rec Robot Analysis Total . | . . . . . Derelict Logs Recovered 2 | . . 1 1 . Drone Launches . | . . . . . Drone Recoveries . | . . . . . Exploration | -11 -10 -10 -10 -7 ------------- Run | Yrd Mat Min Sub Rec Turns Passed 3898 | 56 474 573 2630 165 Spaces Moved 1418 | 36 241 217 871 53 Core 162 | 12 . . 150 . Treads 1228 | 24 241 217 693 53 Legs . | . . . . . Wheels 28 | . . . 28 . Hover . | . . . . . Flight . | . . . . . Fastest Speed 50 | 50 160 240 120 260 Average Speed 253 | 123 160 240 287 260 Slowest Speed 500 | 160 160 240 500 260 Overloaded Moves . | . . . . . Propulsion Burnouts . | . . . . . Robots Hopped . | . . . . . Cave-ins Triggered . | . . . . . Exploration Rate (%) 27 | 3 50 35 35 15 Regions Visited 4 Branch Regions 3 Pre-discovered Areas . | . . . . . Known Exits Taken . | . . . . . Unknown Exits Taken 4 | 1 1 1 1 . Scrap Searched 4 | . . . 4 . Spaces Dug . | . . . . . Terrain Destroyed 17 | . 6 . 7 4 Melee . | . . . . . Projectile 11 | . . . 7 4 AOE 6 | . 6 . . . Terrain Rammed . | . . . . . Walls Destroyed . | . . . . . Machines Disabled . | . . . . . Actions | -11 -10 -10 -10 -7 --------- Run | Yrd Mat Min Sub Rec Total 1597 | 48 283 251 941 74 Wait 45 | . 6 5 25 9 Move 1414 | 35 240 216 870 53 Hop . | . . . . . Pick Up 30 | 7 7 8 7 1 Fast Attach 3 | . . 2 . 1 Attach 13 | 6 2 1 4 . Detach . | . . . . . Swap 7 | . 4 . 1 2 Drop 13 | . 1 4 4 4 Fire 72 | . 23 15 30 4 Melee . | . . . . . Ram . | . . . . . Kick . | . . . . . Crush . | . . . . . Escape Stasis . | . . . . . Rewire . | . . . . . Trap . | . . . . . Miscellaneous . | . . . . . Route ------- -11/Scrapyard -10/Materials (discovered 3 exits: [*Mat x2] / *Min) -10/Mines (discovered 2 exits: [*Mat] / [*Sub]) -10/Subcaves -7/Recycling History --------- Turn | Location | Event 40 | -11/Scrapyard | Discovered new exit (range 12) 57 | -11/Scrapyard | Entered Materials 229 | -10/Materials | Discovered new exit (range 11) 304 | -10/Materials | Build established: Mutant 415 | -10/Materials | Discovered new exit (range 15) 501 | -10/Materials | Discovered new exit (range 15) 531 | -10/Materials | Entered Mines 598 | -10/Mines | Found a hidden stash of uninstalled traps 706 | -10/Mines | Met a Derelict shopkeep closing up shop 849 | -10/Mines | Learned location of 1 exit from Materials 854 | -10/Mines | Discovered new exit (range 10) 1087 | -10/Mines | Discovered new exit (range 9) 1104 | -10/Mines | Entered Subcaves 1105 | -10/Subcaves | Shifting Twisted Machinery released Flamer 1108 | -10/Subcaves | Shifting Twisted Machinery released Piercing Trap 1914 | -10/Subcaves | Core integrity fell below 50% 1972 | -10/Subcaves | Shifting Twisted Machinery released Spk. Treads 1972 | -10/Subcaves | Shifting Twisted Machinery released Sub. Optics 3286 | -10/Subcaves | Shifting Twisted Machinery released Sub. Machine Gun 3308 | -10/Subcaves | Shifting Twisted Machinery released Riot Gun 3380 | -10/Subcaves | Learned Materials trap positions 3432 | -10/Subcaves | Discovered new exit (range 13) 3734 | -10/Subcaves | Entered Recycling 3767 | -7/Recycling | Found Scrap Engine 3881 | -7/Recycling | Core integrity fell below 20% 3899 | -7/Recycling | Destroyed by Y-54 Guardian with Gatling Laser Last Messages --------------- 03479_ Acquired 40 matter. 03492_ Acquired 8 matter. A mysterious object appears at your location! LOCATION=UNKNOWN GOAL=ESCAPE 03766_ Dropped Hpw. Shotgun. 03766_ Dropped Lgt. Assault Rifle. 03767_ Acquired Scrap Engine. 03768_ Dropped Spk. Treads. 03768_ Dropped Hcp. Battery. 03769_ Acquired Spk. Treads. 03777_ R-06 Scavenger collects Lgt. Assault Rifle. 03781_ R-06 Scavenger collects Hcp. Battery. 03782_ R-06 Scavenger collects Hpw. Shotgun. 03867_ Y-54 Guardian springs to life. 03872_ Sub. Beam Cannon shoots sparks and powers down. 03872_ Slug penetrates Wall. 03876_ U-05 Engineer builds a Wall. Map ----- +----------------------------------------------------+ | ?????????????????????????????????????????????????? | | ?????????????????????????????????????????????????? | | ?????????????????????????????????????????????????? | | ?????????????????????????????????????????????????? | | ?????????????????????????????????????????????????? | | ?????????????????????????????????????????????????? | | ?????????????????????????????????????????????????? | | ?????????????????????????????????????????????????? | | ?????????????????????????????????????????????????? | | ?????????????????????????????????????????????????? | | ?????????????????????????????????????????????????? | | ?????????????????????????????????????????????????? | | ?????????????????????????????????????????????????? | | ?????????????????????????????????????????????????? | | ??????????????????????????##?????????????????????? | | ?????????????????????????? ?????????????????????? | | ?????????????????????"???? ????????????????????? | | ?????????????????? "Y ???? """???????????????????? | | ?????????????????? """ """ """ ??????????????????? | | ?????????????????? """ """ ??????????????????? | | ????????????????"" #?????????????????? | | ????????????????T """ """ """ #?????????????????? | | ????????????????"" """ """ """ #?????????????????? | | ?????????????????# """ """ """ #?????????????????? | | ?????????????????# #?????????????????? | | ?????????????????# @ #????? ?????????? | | ?????????????????#######Y########???? ????????? | | ???????????????????### "#???# ????????? | | ???????????????????#"" #???# ????????? | | ???????????????????#"Y ##???# #???????? | | ???????????????????#"" # #??# #???????? | | ???????????????????### ###### #???????? | | ?????????????????????# ##"T"# #???????? | | ?????????????????????# #???????? | | ?????????????????????# #???????? | | ?????????????????????# #???????? | | ?????????????????????# """"" """"" ######### | | ?????????????????????# """"" """"" | | ?????????????????????# """"" """"" | | ?????????????????????+ """"" """"" | | ?????????????????????# | | ?????????????????????# | | ?????????????????????#########################"Y"# | | ?????????????????????????????????????????????#"""# | | ?????????????????????????????????????????????##### | | ?????????????????????????????????????????????????? | | ?????????????????????????????????????????????????? | | | | | | | +----------------------------------------------------+ Best States ------------- Heat Dissipation 25 Energy Generation 10 Energy Capacity 500 Matter Stores 300 Matter Capacity 300 Sight Range 16 Terrain Scan Density 10 Evasion (%) 50 Recoil Reduction 2 Item Schematics ----------------- None Robot Schematics ------------------ None Fabricated ------------ Nothing Alien Tech Used ----------------- None Achievements -------------- None Challenges ------------ None Game ------ Seed FrostTrapFacilitator Manual? 0 Play Time 00:21:59 Cumulative 20.8 hours Start 2024.07.02 @ 16:45:52 End 2024.07.02 @ 17:23:53 Sessions 1 Manual Loads 0 Difficulty Rogue Special Mode None Game No. 46 Rogue 46 Adventurer 0 Explorer 0 Win Type - Total 0 Types 0/0/0/0/0/0/0/0/0 Lore% 19 Gallery% 26 Achievement% 18 Wizard Run 0 Options --------- Layout 1 ASCII 0 Keyboard 0 Movement Mouse Keybinds 0 Fullscreen 2 Font 24/Smallcaps Map View 50x35 Zoom Use 0% Tactical HUD 1 Map Filters NONE Filters NONE Steam 1 RUN: c367bf55-e58b-4ba0-a469-c31c0b11386e